bitfinex/quotes_BTCUSD_20241223
["timestamp","ask_amount","ask_price","bid_price","bid_amount"]
[1734965500158,0.212904,93939.0,93936.0,0.0762]
[1734965500368,0.212904,93939.0,93936.0,0.0772]
[1734965500589,0.425808,93939.0,93936.0,0.001]
[1734965500805,0.16889439,93938.0,93935.0,0.00024588]
[1734965501009,0.212908,93937.0,93936.0,0.004]
[1734965501219,0.212908,93937.0,93935.0,0.00024588]
[1734965501220,0.31689432,93937.0,93935.0,0.00024588]
[1734965501442,0.212904,93939.0,93935.0,0.00024588]
[1734965501443,0.10398632,93936.0,93935.0,0.00024588]
[1734965501653,0.10502439,93936.0,93935.0,0.00024588]
[1734965502273,0.001,93937.0,93935.0,0.00024588]
[1734965502487,0.00103807,93936.0,93935.0,0.00024588]
[1734965502699,0.001,93937.0,93935.0,0.00024588]
[1734965502914,0.31689632,93936.0,93935.0,0.00224588]
[1734965503335,0.31689632,93936.0,93935.0,0.00024588]
[1734965503757,0.31889632,93936.0,93935.0,0.00724588]
[1734965504010,0.38207635,93936.0,93935.0,0.00024588]
[1734965504214,0.38207635,93936.0,93935.0,0.00124588]
[1734965504436,0.31789632,93936.0,93935.0,0.00024588]
[1734965504648,0.66789632,93936.0,93935.0,8.8e-07]
[1734965504857,0.56889632,93936.0,93935.0,8.8e-07]
[1734965505062,0.75043018,93936.0,93935.0,8.8e-07]
[1734965505241,0.75043018,93936.0,93892.0,0.0823]
[1734965505242,0.1,93914.0,93900.0,9.919e-05]
[1734965505491,0.21299,93901.0,93900.0,0.0001617]
[1734965505671,0.31697632,93901.0,93900.0,0.0001617]
[1734965506802,0.31997632,93901.0,93900.0,0.0001617]
[1734965507025,0.32597632,93901.0,93900.0,0.0011617]
[1734965507273,0.32597632,93901.0,93900.0,0.0001617]
[1734965507448,0.40355228,93901.0,93900.0,0.0011617]
[1734965507680,0.33197632,93901.0,93900.0,0.0011617]
[1734965507904,0.32597632,93901.0,93900.0,0.0001617]
[1734965508121,0.32497632,93901.0,93900.0,0.0001617]
[1734965508495,0.40306955,93901.0,93900.0,0.0001617]
[1734965508958,0.423244,93901.0,93900.0,0.0001617]
[1734965509167,0.34815077,93901.0,93900.0,0.0001617]
[1734965509378,0.34315077,93901.0,93900.0,0.0001617]
[1734965509584,0.34715077,93901.0,93900.0,0.0001617]
[1734965509792,0.32067632,93901.0,93900.0,0.0001617]
[1734965510000,0.34914709,93901.0,93900.0,0.0001617]
[1734965510209,0.44861128,93901.0,93900.0,0.0011617]
[1734965510425,0.12847069,93900.0,93899.0,7e-07]
[1734965510667,0.23349508,93900.0,93899.0,7e-07]
[1734965510870,0.525988,93899.0,93861.0,0.0487]
[1734965511077,0.10398632,93897.0,93861.0,0.0487]
[1734965511281,0.00103807,93896.0,93861.0,0.0487]
[1734965511493,0.31698732,93896.0,93866.0,0.213068]
[1734965511922,0.426025,93891.0,93888.0,34.98753083]
[1734965512123,0.31700332,93889.0,93888.0,34.98753083]
[1734965512328,0.37190823,93889.0,93888.0,34.98753083]
[1734965512535,0.31700332,93889.0,93888.0,34.98753083]
[1734965513427,0.31800332,93889.0,93888.0,34.98753083]
[1734965514685,0.31900332,93889.0,93888.0,34.98753083]
[1734965515546,9.31900332,93889.0,93888.0,34.98753083]
[1734965516813,9.31900332,93889.0,93888.0,34.91353083]
[1734965518254,9.63392859,93889.0,93888.0,34.91353083]
[1734965518668,9.56900332,93889.0,93888.0,34.91353083]
[1734965519284,9.56900332,93889.0,93888.0,34.91361643]
[1734965519968,9.66900332,93889.0,93888.0,34.91361643]
[1734965520173,9.56900332,93889.0,93888.0,34.91361643]
[1734965520375,9.56900332,93889.0,93888.0,34.90959169]
[1734965520580,9.77198964,93889.0,93888.0,34.90959169]
[1734965520782,9.67998964,93889.0,93888.0,34.91059169]
[1734965520988,9.47600332,93889.0,93888.0,34.91059169]
[1734965521196,9.46800332,93889.0,93888.0,34.90959169]
[1734965521403,9.56800332,93889.0,93888.0,34.90959169]
[1734965521614,9.56700332,93889.0,93888.0,34.90959169]
[1734965521855,9.46700332,93889.0,93888.0,34.83559169]
[1734965522041,9.47300332,93889.0,93888.0,34.83559169]
[1734965522386,9.32600332,93889.0,93888.0,34.83659169]
[1734965522596,9.11298632,93889.0,93888.0,34.83659169]
[1734965522799,8.91083788,93889.0,93888.0,34.99466304]
[1734965523009,8.81809936,93889.0,93888.0,34.99466304]
[1734965523228,8.81809936,93889.0,93888.0,34.9928832]
[1734965523454,8.81809936,93889.0,93888.0,35.09686952]
[1734965523655,8.80909936,93889.0,93888.0,35.09586952]
[1734965524286,8.79646598,93889.0,93888.0,35.09586952]
[1734965524489,3.33121389,93889.0,93888.0,35.19582302]
[1734965524687,0.068,93955.0,93915.0,0.1]
[1734965524888,0.33244576,93977.0,93929.0,0.15710335]
[1734965524889,0.212864,93957.0,93929.0,0.15710335]
[1734965525088,0.0829,93969.0,93942.0,0.212896]
[1734965525314,0.0003315,93948.0,93944.0,0.212891]
[1734965525544,0.0003315,93948.0,93946.0,0.212888]
[1734965525682,0.0929783,93966.0,93965.0,0.212845]
[1734965525887,0.05238385,93966.0,93965.0,0.32224907]
[1734965526086,0.0001712,93995.0,93968.0,0.1]
[1734965526317,0.0001712,93995.0,93965.0,0.10940407]
[1734965526318,0.00070631,93995.0,93990.0,0.425574]
[1734965526521,0.00070631,93995.0,93992.0,0.212784]
[1734965526724,0.00070631,93995.0,93994.0,0.212779]
[1734965527003,1.35,94000.0,93999.0,0.25]
[1734965527321,1.30370593,94000.0,93999.0,0.35531018]
[1734965527529,0.13946745,94012.0,94011.0,0.1]
[1734965527737,0.08622273,94012.0,94011.0,0.51672732]
[1734965527939,0.07517688,94012.0,94011.0,0.70192171]
[1734965528144,0.18595661,94018.0,94017.0,0.2]
[1734965528357,0.0013293,94055.0,94030.0,0.212698]
[1734965528560,0.00033131,94031.0,94030.0,0.31668432]
[1734965528763,0.00033131,94031.0,94030.0,0.32191634]
[1734965529378,0.00033131,94031.0,94030.0,0.42191634]
[1734965529586,0.00258419,94031.0,94030.0,0.77046554]
[1734965529792,0.0001714,94071.0,94040.0,0.1]
[1734965529793,0.212651,94051.0,94040.0,0.1]
[1734965529927,0.212653,94050.0,94041.0,0.10454235]
[1734965530130,0.003,94031.0,94030.0,0.35678122]
[1734965530333,0.003,94031.0,94030.0,0.3515492]
[1734965530542,0.0831,94036.0,94030.0,0.3515492]
[1734965530772,0.0831,94036.0,94030.0,0.003]
[1734965530773,0.002,94031.0,94030.0,0.003]
[1734965530943,0.15478632,94031.0,94030.0,0.003]
[1734965531151,0.20797926,94030.0,94028.0,0.094318]
[1734965531469,0.10531582,94029.0,94028.0,0.094318]
[1734965531876,0.212702,94028.0,93997.0,0.212771]
[1734965532108,0.10398632,94027.0,94013.0,0.00016031]
[1734965532271,0.212722,94020.0,94013.0,0.00016031]
[1734965532471,0.425444,94020.0,94013.0,0.00016031]
[1734965532670,0.212726,94018.0,94013.0,0.00016031]
[1734965532876,0.212729,94016.0,94013.0,0.00016031]
[1734965533103,0.003,94028.0,94013.0,0.00016031]
[1734965533341,0.212722,94020.0,94013.0,0.00016031]
[1734965533503,0.31803895,94019.0,94013.0,0.00216031]
[1734965533651,0.10398632,94019.0,94013.0,0.00016031]
[1734965533859,0.212727,94017.0,94013.0,0.00016031]
[1734965534109,0.00532962,94016.0,94013.0,0.00016031]
[1734965534315,0.31671832,94015.0,94013.0,0.00016031]
[1734965534515,0.00132969,94014.0,94013.0,0.00016031]
[1734965535075,0.10531601,94014.0,94013.0,0.00016031]
[1734965536094,0.212732,94015.0,94013.0,0.00016031]
[1734965536298,0.10631601,94014.0,94013.0,0.00016031]
[1734965536623,0.10931601,94014.0,94013.0,0.00016031]
[1734965536828,0.44151601,94014.0,94013.0,0.00016031]
[1734965537033,0.44118632,94014.0,94013.0,0.00016031]
[1734965537253,0.1,94009.0,93963.0,0.03186536]
[1734965537452,0.10398632,93998.0,93964.0,0.00727666]
[1734965537654,0.10398632,93998.0,93963.0,0.00053511]
[1734965537655,0.212842,93967.0,93963.0,0.00053511]
[1734965537867,0.212845,93965.0,93963.0,0.00053511]
[1734965538070,0.00133047,93964.0,93963.0,0.00053511]
[1734965538306,0.212845,93965.0,93963.0,0.00053511]
[1734965538307,0.212846,93965.0,93963.0,0.00053511]
[1734965538501,0.212833,93970.0,93963.0,0.00053511]
[1734965538739,0.212838,93968.0,93963.0,0.00053511]
[1734965538942,0.212842,93966.0,93963.0,0.00053511]
[1734965539310,0.213847,93964.0,93963.0,0.00053511]
[1734965539528,0.213847,93964.0,93912.0,0.212963]
[1734965539529,0.15,93963.0,93912.0,0.212963]
[1734965539742,0.212876,93951.0,93950.0,0.0002004]
[1734965539957,0.001,93964.0,93950.0,0.0002004]
[1734965540160,0.212875,93952.0,93950.0,0.0002004]
[1734965540369,0.00133048,93951.0,93950.0,0.0002004]
[1734965540749,0.1053168,93951.0,93950.0,0.0002004]
[1734965541230,0.321847,93964.0,93950.0,0.0012004]
[1734965541231,0.018,93964.0,93950.0,0.0012004]
[1734965541446,0.00133039,93963.0,93950.0,0.0012004]
[1734965541653,0.018,93964.0,93951.0,0.00055892]
[1734965541861,0.018,93964.0,93950.0,0.0012004]
[1734965542061,0.018,93964.0,93952.0,0.00516192]
[1734965542316,0.00133042,93963.0,93950.0,0.0002004]
[1734965542530,0.004,93964.0,93953.0,0.0051594]
[1734965542734,0.004,93964.0,93950.0,0.0002004]
[1734965542735,0.4257,93963.0,93950.0,0.0002004]
[1734965542944,0.212864,93957.0,93950.0,0.0002004]
[1734965543161,0.10398632,93962.0,93950.0,0.0002004]
[1734965543377,0.10398632,93956.0,93950.0,0.0002004]
[1734965543593,0.212876,93951.0,93950.0,0.0002004]
[1734965543805,0.0458,93955.0,93950.0,0.0002004]
[1734965544436,0.0043304,93963.0,93950.0,0.0002004]
[1734965544678,0.10398632,93962.0,93950.0,0.0002004]
[1734965544892,0.00133044,93961.0,93950.0,0.0012004]
[1734965545101,0.31684332,93960.0,93950.0,0.0012004]
[1734965545267,0.212871,93954.0,93950.0,0.0002004]
[1734965545718,0.10398632,93960.0,93950.0,0.0002004]
[1734965545941,0.003,93962.0,93950.0,0.0002004]
[1734965546151,0.009,93961.0,93950.0,0.0012004]
[1734965546263,0.009,93961.0,93950.0,0.0002004]
[1734965546468,0.001,93954.0,93950.0,0.0002004]
[1734965546876,0.212856,93960.0,93950.0,0.0002004]
[1734965547393,0.212854,93961.0,93950.0,0.0002404]
[1734965547600,0.212867,93955.0,93950.0,0.0002404]
[1734965547775,0.212872,93953.0,93950.0,0.0002404]
[1734965547975,0.105317,93952.0,93950.0,0.0002404]
[1734965548184,0.44496232,93951.0,93950.0,0.0002804]
[1734965548386,0.212971,93910.0,93900.0,4e-05]
[1734965548589,0.15,93950.0,93900.0,4e-05]
[1734965548590,0.212982,93905.0,93900.0,0.0002005]
[1734965548818,0.10398632,93904.0,93900.0,0.0002005]
[1734965549021,0.212985,93903.0,93900.0,0.0002005]
[1734965549226,0.21299,93901.0,93900.0,0.0002005]
[1734965549431,0.31697632,93901.0,93900.0,0.0002005]
[1734965550282,0.21299,93901.0,93900.0,0.0002005]
[1734965550889,0.21599,93901.0,93900.0,0.0002005]
[1734965551321,0.31997632,93901.0,93900.0,0.0002005]
[1734965551542,0.41697632,93901.0,93900.0,0.0002005]
[1734965551813,0.41797632,93901.0,93900.0,0.0002405]
[1734965552041,0.213017,93889.0,93888.0,34.75477107]
[1734965552247,0.31696332,93889.0,93888.0,34.75493109]
[1734965552460,0.31696332,93889.0,93888.0,34.76198284]
[1734965552902,0.10398632,93889.0,93888.0,34.76198284]
[1734965553100,0.16098495,93889.0,93888.0,34.76198284]
[1734965553314,0.36360332,93889.0,93888.0,34.76198284]
[1734965553486,0.36660332,93889.0,93888.0,34.76198284]
[1734965553978,0.269617,93889.0,93888.0,34.76298284]
[1734965554156,0.37360332,93889.0,93888.0,34.76302284]
[1734965554392,0.37660332,93889.0,93888.0,34.76302284]
[1734965554801,0.37660332,93889.0,93888.0,34.76306284]
[1734965555212,0.36660332,93889.0,93888.0,34.76206284]
[1734965555417,0.37260332,93889.0,93888.0,34.76206284]
[1734965556032,0.37260332,93889.0,93888.0,34.74206284]
[1734965556833,0.37260332,93889.0,93888.0,34.66806284]
[1734965557266,0.37260332,93889.0,93888.0,34.66810284]
[1734965557998,0.37260332,93889.0,93888.0,34.66747324]
[1734965558133,0.45420332,93889.0,93888.0,34.66747324]
[1734965558537,0.45420332,93889.0,93888.0,34.66751324]
[1734965558942,0.45420332,93889.0,93888.0,34.66755324]
[1734965559715,0.1372,93889.0,93888.0,34.66755324]
[1734965559917,0.350217,93889.0,93888.0,34.66755324]
[1734965561598,0.222017,93889.0,93888.0,34.66755324]
[1734965561805,0.216017,93889.0,93888.0,34.59355324]
[1734965562222,0.21586371,93889.0,93888.0,34.59355324]
[1734965562424,0.213017,93889.0,93888.0,34.59355324]
[1734965563066,0.216017,93889.0,93888.0,34.59355324]
[1734965563265,0.215917,93889.0,93888.0,34.59355324]
[1734965563498,0.004,93889.0,93888.0,34.59355324]
[1734965563935,0.14998832,93889.0,93888.0,34.58713109]
[1734965564137,0.19798832,93889.0,93888.0,34.58713109]
[1734965564519,0.15498632,93889.0,93888.0,34.58713109]
[1734965565173,0.34138632,93889.0,93888.0,34.58713109]
[1734965565387,0.24138632,93889.0,93888.0,34.56713109]
[1734965565593,0.25442476,93889.0,93888.0,34.56713109]
[1734965565724,0.23638632,93889.0,93888.0,34.56713109]
[1734965566336,0.24238632,93889.0,93888.0,34.56713109]
[1734965566782,0.24138632,93889.0,93888.0,34.49313109]
[1734965567166,0.23487927,93889.0,93888.0,34.49313109]
[1734965567386,0.23208096,93889.0,93888.0,34.49313109]
[1734965567586,0.22156853,93889.0,93888.0,34.49313109]
[1734965567966,0.22456853,93889.0,93888.0,34.49313109]
[1734965568495,0.22856853,93889.0,93888.0,34.49313109]
[1734965568682,0.1364,93889.0,93888.0,34.49313109]
[1734965568883,0.1324,93889.0,93888.0,34.49313109]
[1734965569080,0.1344,93889.0,93888.0,34.49313109]
[1734965569586,0.1364,93889.0,93888.0,34.49313109]
[1734965569814,0.1363,93889.0,93888.0,34.49313109]
[1734965570016,0.1343,93889.0,93888.0,34.49313109]
[1734965570186,0.24128632,93889.0,93888.0,34.49313109]
[1734965570386,0.24128632,93889.0,93888.0,34.48013107]
[1734965570589,0.1423,93889.0,93888.0,34.48013107]
[1734965570797,0.1393,93889.0,93888.0,34.48013107]
[1734965570971,0.0529,93889.0,93888.0,34.48013107]
[1734965571181,0.01,93889.0,93888.0,34.48013107]
[1734965571600,0.007,93889.0,93888.0,34.48013107]
[1734965571837,0.008,93889.0,93888.0,34.40613107]
[1734965572056,0.003,93889.0,93888.0,34.40613107]
[1734965572431,0.003,93889.0,93888.0,34.40713107]
[1734965572841,0.001,93889.0,93888.0,34.40713107]
[1734965573703,0.426026,93891.0,93888.0,34.40613107]
[1734965573907,0.426026,93891.0,93888.0,34.41313107]
[1734965574110,0.213017,93889.0,93888.0,29.81458869]
[1734965574314,0.67920332,93889.0,93888.0,22.00781526]
[1734965574517,0.7112453,93889.0,93888.0,19.79289354]
[1734965574770,0.7112453,93889.0,93888.0,19.45889425]
[1734965574771,0.4990453,93889.0,93888.0,19.45889425]
[1734965574976,0.4990453,93889.0,93888.0,19.30618322]
[1734965574977,0.62028324,93889.0,93888.0,19.30618322]
[1734965575180,0.62028324,93889.0,93888.0,19.31118322]
[1734965575386,0.58824126,93889.0,93888.0,19.26988122]
[1734965575598,0.58824126,93889.0,93888.0,19.24357922]
[1734965576237,0.58824126,93889.0,93888.0,19.17967322]
[1734965576653,0.58824126,93889.0,93888.0,19.13706922]
[1734965576863,0.58824126,93889.0,93888.0,18.99916322]
[1734965577096,0.57600332,93889.0,93888.0,19.00216322]
[1734965577351,0.56700332,93889.0,93888.0,19.00116322]
[1734965577568,0.47600332,93889.0,93888.0,18.89365322]
[1734965577790,0.58400332,93889.0,93888.0,18.89265322]
[1734965578202,0.58500332,93889.0,93888.0,18.89365322]
[1734965578409,0.58490332,93889.0,93888.0,18.89365322]
[1734965578621,0.59290332,93889.0,93888.0,18.85104922]
[1734965578754,0.59290332,93889.0,93888.0,18.82974722]
[1734965578955,0.59290332,93889.0,93888.0,18.80844522]
[1734965580303,0.59290332,93889.0,93888.0,18.74584122]
[1734965580494,0.59307452,93889.0,93888.0,18.72453922]
[1734965580705,0.59307452,93889.0,93888.0,18.70323722]
[1734965581485,0.59307452,93889.0,93888.0,18.68193522]
[1734965581691,0.59307452,93889.0,93888.0,18.63933122]
[1734965581906,0.59307452,93889.0,93888.0,18.56533122]
[1734965582546,0.37527405,93889.0,93888.0,18.56533122]
[1734965582718,0.34307452,93889.0,93888.0,18.56533122]
[1734965583385,0.34307452,93889.0,93888.0,18.48012322]
[1734965583534,0.43507452,93889.0,93888.0,18.43751922]
[1734965583741,0.46729687,93889.0,93888.0,18.43751922]
[1734965583918,0.50729687,93889.0,93888.0,18.43651922]
[1734965584124,0.33407452,93889.0,93888.0,18.43751922]
[1734965584336,0.35827634,93889.0,93888.0,18.39491522]
[1734965584535,0.35827634,93889.0,93888.0,18.39391522]
[1734965584753,0.37427634,93889.0,93888.0,18.39491522]
[1734965584967,0.34207452,93889.0,93888.0,18.39491522]
[1734965585168,0.31707452,93889.0,93888.0,18.39391522]
[1734965585416,0.31707452,93889.0,93888.0,18.39091522]
[1734965585621,0.32307452,93889.0,93888.0,18.39091522]
[1734965586405,0.33207452,93889.0,93888.0,18.39191522]
[1734965586621,0.33207452,93889.0,93888.0,18.39091522]
[1734965586804,0.32607452,93889.0,93888.0,18.31691522]
[1734965587003,0.2310882,93889.0,93888.0,18.31791522]
[1734965587214,0.0221712,93889.0,93888.0,18.44271522]
[1734965588022,0.0181712,93889.0,93888.0,18.44271522]
[1734965588224,0.0001712,93889.0,93888.0,18.44171522]
[1734965588445,0.0021712,93889.0,93888.0,18.44171522]
[1734965589268,0.10615752,93889.0,93888.0,18.44171522]
[1734965589676,0.11015752,93889.0,93888.0,18.36651522]
[1734965589876,0.0061712,93889.0,93888.0,18.36651522]
[1734965590428,0.0061712,93889.0,93888.0,18.46651522]
[1734965591143,0.0041712,93889.0,93888.0,18.46651522]
[1734965591538,0.0020712,93889.0,93888.0,18.46651522]
[1734965591747,0.0020712,93889.0,93888.0,18.39251522]
[1734965591945,0.212989,93902.0,93889.0,0.0761]
[1734965592146,0.212989,93902.0,93892.0,0.1]
[1734965592388,0.212967,93912.0,93900.0,0.1]
[1734965592602,0.09162247,93919.0,93900.0,0.1]
[1734965592820,0.09162247,93919.0,93900.0,0.22756021]
[1734965593021,0.212959,93915.0,93900.0,0.227]
[1734965593233,0.09162247,93919.0,93913.0,0.1]
[1734965593434,0.09162247,93919.0,93918.0,0.1]
[1734965593642,0.09162247,93919.0,93918.0,0.227]
[1734965594066,0.10398632,93919.0,93918.0,0.127]
[1734965594188,0.212981,93905.0,93904.0,0.0773]
[1734965594394,0.31696732,93905.0,93904.0,0.0773]
[1734965594590,0.31704118,93905.0,93904.0,0.0773]
[1734965594790,0.31704118,93905.0,93903.0,0.0488]
[1734965595021,0.10531768,93904.0,93903.0,0.0488]
[1734965595451,0.85194,93903.0,93889.0,0.0773]
[1734965595667,0.10531773,93902.0,93889.0,0.0773]
[1734965595865,0.213015,93890.0,93889.0,0.0773]
[1734965596142,0.212992,93901.0,93897.0,0.1]
[1734965596394,7.386e-05,93905.0,93900.0,0.1]
[1734965596602,0.09162247,93902.0,93901.0,0.1]
[1734965596778,0.21299,93901.0,93900.0,0.1]
[1734965596985,0.212992,93900.0,93894.0,0.026]
[1734965597187,0.30461147,93902.0,93901.0,0.026]
[1734965597625,7.386e-05,93905.0,93902.0,0.026]
[1734965597796,7.386e-05,93905.0,93904.0,0.0744]
[1734965598006,0.09162247,93914.0,93904.0,0.1569]
[1734965598249,0.09162247,93914.0,93913.0,0.026]
[1734965598453,0.09162247,93914.0,93913.0,0.1085]
[1734965599083,0.10398632,93914.0,93913.0,0.0825]
[1734965599527,0.10531745,93914.0,93913.0,0.0825]
[1734965599727,0.10398632,93914.0,93913.0,0.0825]
[1734965600114,0.10598632,93914.0,93913.0,0.0825]
[1734965600316,0.10598632,93914.0,93904.0,0.0484]
[1734965600317,0.10398632,93914.0,93904.0,0.0484]
[1734965600517,0.212981,93905.0,93904.0,0.0484]
[1734965601145,0.212965,93912.0,93904.0,0.0484]
[1734965601346,0.212975,93908.0,93904.0,0.0744]
[1734965601524,0.10531748,93907.0,93904.0,0.0484]
[1734965601769,0.10531748,93907.0,93898.0,0.0771]
[1734965601974,0.212992,93900.0,93887.0,0.0488505]
[1734965602184,0.213017,93889.0,93888.0,18.24282906]
[1734965602389,0.31700332,93889.0,93888.0,18.24282906]
[1734965603041,0.46700332,93889.0,93888.0,18.16882906]
[1734965603449,0.47100332,93889.0,93888.0,18.16882906]
[1734965603651,0.47300332,93889.0,93888.0,18.16882906]
[1734965603858,0.54700332,93889.0,93888.0,18.16882906]
[1734965604066,0.006,93889.0,93888.0,18.19482906]
[1734965604275,0.006,93889.0,93888.0,18.24252906]
[1734965604486,0.006,93889.0,93888.0,18.32032906]
[1734965605514,0.09162247,93891.0,93888.0,18.29432906]
[1734965605746,0.09162247,93891.0,93890.0,0.026]
[1734965605959,0.213012,93891.0,93890.0,0.026]
[1734965606636,0.426025,93891.0,93888.0,18.30132906]
[1734965606839,0.426025,93891.0,93888.0,18.22132906]
[1734965607041,0.426025,93891.0,93890.0,0.004]
[1734965607252,0.426025,93891.0,93888.0,18.22032906]
[1734965607445,0.426025,93891.0,93890.0,0.002]
[1734965608539,0.213012,93891.0,93890.0,0.002]
[1734965608739,0.213012,93891.0,93890.0,0.003]
[1734965608944,0.213012,93891.0,93890.0,0.002]
[1734965609155,0.427025,93891.0,93888.0,18.22032906]
[1734965609549,0.426025,93891.0,93888.0,18.22032906]
[1734965610081,0.213012,93891.0,93888.0,18.22032906]
[1734965610317,0.213007,93894.0,93889.0,0.026]
[1734965610517,0.150171,93914.0,93889.0,0.026]
[1734965610518,0.005,93891.0,93889.0,0.026]
[1734965610877,0.213016,93890.0,93889.0,0.026]
[1734965611283,0.2128549,93890.0,93889.0,0.026]
[1734965611926,0.2128549,93890.0,93888.0,18.17332906]
[1734965612119,0.2128549,93890.0,93888.0,18.17232906]
[1734965612497,0.2168549,93890.0,93888.0,18.17232906]
[1734965612894,0.2188549,93890.0,93888.0,18.17232906]
[1734965613293,0.2148549,93890.0,93888.0,18.17232906]
[1734965613669,0.2158549,93890.0,93888.0,18.17232906]
[1734965613885,0.10398632,93889.0,93888.0,18.02552706]
[1734965614121,0.45398632,93889.0,93888.0,17.94031906]
[1734965614331,0.4758464,93889.0,93888.0,17.73980142]
[1734965614539,0.50799891,93889.0,93888.0,17.61333126]
[1734965614750,0.54225346,93889.0,93888.0,17.60083126]
[1734965614949,0.54225346,93889.0,93888.0,17.58174071]
[1734965615156,0.54225346,93889.0,93888.0,17.57073071]
[1734965615581,0.54225346,93889.0,93888.0,17.46422071]
[1734965615582,0.80693477,93889.0,93888.0,17.46422071]
[1734965615788,1.24862377,93889.0,93888.0,17.30906541]
[1734965615994,1.23952377,93889.0,93888.0,17.29498541]
[1734965616202,1.24852377,93889.0,93888.0,16.88714527]
[1734965616413,1.90271894,93889.0,93888.0,16.08938283]
[1734965616625,1.8897459,93889.0,93888.0,15.76096724]
[1734965616835,1.44322814,93889.0,93888.0,15.65333169]
[1734965617048,1.45222814,93889.0,93888.0,14.8472664]
[1734965617265,1.44322814,93889.0,93888.0,14.8472664]
[1734965617482,0.63169245,93889.0,93888.0,14.79772248]
[1734965617693,0.52759745,93889.0,93888.0,14.52081582]
[1734965617904,0.64158745,93889.0,93888.0,14.52181582]
[1734965618114,0.66903745,93889.0,93888.0,14.52181582]
[1734965618316,0.96203622,93889.0,93888.0,14.52181582]
[1734965618466,0.96203622,93889.0,93888.0,14.45790982]
[1734965618467,0.95462622,93889.0,93888.0,14.45790982]
[1734965618675,0.94562622,93889.0,93888.0,14.41430582]
[1734965619176,0.94562622,93889.0,93888.0,14.41530582]
[1734965619375,0.52113531,93889.0,93888.0,14.39400382]
[1734965619573,0.60533894,93889.0,93888.0,14.33009782]
[1734965619779,0.60533894,93889.0,93888.0,14.30879582]
[1734965620146,0.53644534,93889.0,93888.0,14.30879582]
[1734965620369,0.63960494,93889.0,93888.0,14.24919181]
[1734965620593,0.65673729,93889.0,93888.0,14.18528581]
[1734965620800,0.65673729,93889.0,93888.0,14.17957293]
[1734965621000,0.66415848,93889.0,93888.0,14.13452264]
[1734965621210,0.66415848,93889.0,93888.0,14.00909327]
[1734965621426,0.54385048,93889.0,93888.0,13.93824735]
[1734965621646,1.81370748,93889.0,93888.0,13.89564335]
[1734965621844,1.53502248,93889.0,93888.0,13.82164335]
[1734965622050,1.53502248,93889.0,93888.0,13.81147266]
[1734965622252,1.04301348,93889.0,93888.0,13.80453255]
[1734965622543,1.04301348,93889.0,93888.0,13.74888855]
[1734965622990,0.70261692,93889.0,93888.0,13.68498255]
[1734965623386,0.73600158,93889.0,93888.0,13.12983017]
[1734965623603,0.7267319,93889.0,93888.0,13.06592417]
[1734965623744,0.69474755,93889.0,93888.0,13.04462217]
[1734965624109,0.72670393,93889.0,93888.0,13.04462217]
[1734965624348,0.69474755,93889.0,93888.0,13.04182217]
[1734965624544,0.72764142,93889.0,93888.0,12.93531217]
[1734965624743,0.54959936,93889.0,93888.0,12.93531217]
[1734965624972,0.32645057,93889.0,93888.0,12.93531217]
[1734965625123,0.42677057,93889.0,93888.0,12.93531217]
[1734965625380,0.42677057,93889.0,93888.0,12.90691599]
[1734965625589,0.4670758,93889.0,93888.0,12.58374978]
[1734965626142,0.60404505,93889.0,93888.0,12.58094978]
[1734965626347,0.62002676,93889.0,93888.0,11.68043204]
[1734965626555,0.67664357,93889.0,93888.0,11.31923003]
[1734965626783,0.67664357,93889.0,93888.0,9.64389886]
[1734965626993,0.67664357,93889.0,93888.0,9.20534001]
[1734965627196,0.67664357,93889.0,93888.0,8.99178116]
[1734965627400,0.78062989,93889.0,93888.0,8.68817011]
[1734965627607,0.78062989,93889.0,93888.0,8.6156419]
[1734965627816,0.76190339,93889.0,93888.0,8.21069859]
[1734965628038,0.60939816,93889.0,93888.0,8.21069859]
[1734965628243,0.64964476,93889.0,93888.0,8.15947243]
[1734965628450,0.64964476,93889.0,93888.0,8.06757035]
[1734965628660,0.64632767,93889.0,93888.0,8.04294653]
[1734965628879,0.54308551,93889.0,93888.0,8.04294653]
[1734965629079,0.62860978,93889.0,93888.0,8.03814653]
[1734965629299,0.63760978,93889.0,93888.0,8.03694653]
[1734965629472,0.64660978,93889.0,93888.0,8.01664453]
[1734965629679,0.63760978,93889.0,93888.0,7.93043653]
[1734965630098,0.64660978,93889.0,93888.0,7.93043653]
[1734965630330,0.64660978,93889.0,93888.0,7.91043653]
[1734965630567,0.64660978,93889.0,93888.0,7.84653053]
[1734965630808,0.64660978,93889.0,93888.0,7.80392653]
[1734965631067,0.67370867,93889.0,93888.0,7.80112653]
[1734965631317,0.67370867,93889.0,93888.0,7.79546274]
[1734965631562,0.67370867,93889.0,93888.0,7.74711536]
[1734965631814,0.66470867,93889.0,93888.0,7.07533177]
[1734965632064,0.66470867,93889.0,93888.0,7.07633177]
[1734965632326,3.25481767,93889.0,93888.0,7.07633177]
[1734965632583,3.23812501,93889.0,93888.0,6.9390418]
[1734965632830,3.22816652,93889.0,93888.0,6.9380418]
[1734965633124,3.23716652,93889.0,93888.0,6.9352418]
[1734965633333,3.07302052,93889.0,93888.0,6.9362418]
[1734965633586,3.07302052,93889.0,93888.0,6.9352418]
[1734965633838,2.86341752,93889.0,93888.0,6.8287318]
[1734965634092,2.73835952,93889.0,93888.0,6.8287318]
[1734965634463,2.72935952,93889.0,93888.0,6.7648258]
[1734965634688,2.73835952,93889.0,93888.0,6.7222218]
[1734965634899,2.74735952,93889.0,93888.0,6.7222218]
[1734965635112,2.73835952,93889.0,93888.0,6.7222218]
[1734965635304,2.74175952,93889.0,93888.0,6.7022218]
[1734965635565,2.85975952,93889.0,93888.0,6.6170138]
[1734965635767,2.86745279,93889.0,93888.0,5.90336696]
[1734965635994,2.76745279,93889.0,93888.0,4.54436696]
[1734965636205,2.82298606,93889.0,93888.0,4.08856696]
[1734965636420,2.55158606,93889.0,93888.0,4.02466096]
[1734965636653,2.51946344,93889.0,93888.0,3.83105696]
[1734965636870,2.54366213,93889.0,93888.0,3.75705696]
[1734965637504,2.53466213,93889.0,93888.0,3.69315096]
[1734965637701,2.68466213,93889.0,93888.0,3.64814696]
[1734965637909,2.79706213,93889.0,93888.0,3.64814696]
[1734965638124,2.80606213,93889.0,93888.0,3.64814696]
[1734965638326,2.79706213,93889.0,93888.0,3.64814696]
[1734965638534,2.79706213,93889.0,93888.0,3.56009272]
[1734965638745,2.77616241,93889.0,93888.0,3.56009272]
[1734965638951,2.78054348,93889.0,93888.0,3.56009272]
[1734965639205,2.74328097,93889.0,93888.0,3.56009272]
[1734965639411,2.75228097,93889.0,93888.0,3.53879072]
[1734965639835,2.64888097,93889.0,93888.0,3.47488472]